bitfinex/quotes_BTCUSD_20240101
["timestamp","ask_amount","ask_price","bid_price","bid_amount"]
[1704139630577,0.054,43736.0,43732.0,0.09065778]
[1704139630789,1.21813097,43737.0,43735.0,0.00525863]
[1704139631028,1.21813097,43737.0,43730.0,0.53771711]
[1704139631029,0.01,43735.0,43732.0,0.001]
[1704139631456,0.58519822,43733.0,43732.0,0.001]
[1704139631670,0.63993922,43733.0,43732.0,0.001]
[1704139631883,0.01,43733.0,43732.0,0.001]
[1704139632101,0.06682,43733.0,43732.0,0.001]
[1704139632312,0.06682,43733.0,43732.0,0.00627133]
[1704139632517,0.06682,43733.0,43732.0,0.001]
[1704139632718,0.01,43732.0,43728.0,0.04931581]
[1704139632954,0.04428,43734.0,43728.0,0.13997359]
[1704139633155,0.054741,43735.0,43729.0,0.00528539]
[1704139633156,0.04782,43733.0,43729.0,0.00528539]
[1704139633579,0.05694,43734.0,43729.0,0.00528539]
[1704139633702,0.054741,43736.0,43732.0,0.07]
[1704139633703,0.05896,43735.0,43732.0,0.07]
[1704139633917,0.01,43733.0,43732.0,0.071]
[1704139634340,0.04896,43735.0,43732.0,0.07527133]
[1704139634544,0.0516,43736.0,43732.0,0.07]
[1704139634746,0.013,43733.0,43732.0,0.3857]
[1704139635761,0.013,43733.0,43732.0,0.39097133]
[1704139636343,0.016,43735.0,43732.0,0.39197133]
[1704139636552,0.026,43735.0,43732.0,0.39197133]
[1704139636759,0.01,43735.0,43732.0,0.39097133]
[1704139636972,0.01,43735.0,43732.0,0.39197133]
[1704139637177,0.013,43733.0,43732.0,0.39197133]
[1704139637636,0.05514,43736.0,43732.0,0.41162911]
[1704139638071,0.01,43733.0,43732.0,0.40735778]
[1704139638277,0.01,43733.0,43732.0,0.40835778]
[1704139638458,0.01,43733.0,43732.0,0.4136154]
[1704139639083,0.016,43735.0,43732.0,0.4126154]
[1704139639665,0.016,43735.0,43732.0,0.4136154]
[1704139640079,0.016,43735.0,43732.0,0.4146154]
[1704139640282,0.06056,43736.0,43732.0,0.4126154]
[1704139640513,0.06056,43736.0,43732.0,0.40735778]
[1704139640720,0.04422,43735.0,43732.0,0.40735778]
[1704139641122,0.05028,43736.0,43732.0,0.40635778]
[1704139641328,0.0498,43735.0,43732.0,0.40635778]
[1704139641527,0.0628,43735.0,43732.0,0.40735778]
[1704139641754,0.013,43735.0,43732.0,0.40735778]
[1704139642168,0.05976,43734.0,43732.0,0.3167]
[1704139642376,0.05976,43734.0,43732.0,0.34366559]
[1704139642579,0.05976,43734.0,43732.0,0.34466559]
[1704139642988,0.05976,43734.0,43732.0,0.3177]
[1704139643193,0.05976,43734.0,43732.0,0.3167]
[1704139643397,0.07476,43734.0,43732.0,0.3177]
[1704139643815,0.04404,43733.0,43732.0,0.3177]
[1704139644040,0.015,43734.0,43733.0,0.09649438]
[1704139644262,0.015,43734.0,43733.0,0.46235038]
[1704139644472,0.015,43734.0,43733.0,0.46234822]
[1704139644903,0.027,43734.0,43733.0,0.46234822]
[1704139645118,0.027,43734.0,43733.0,1.52116767]
[1704139645334,0.0128,43734.0,43733.0,1.75438478]
[1704139645557,1.19063097,43737.0,43736.0,0.49065778]
[1704139645771,1.19063097,43737.0,43736.0,1.74852534]
[1704139646224,1.19063097,43737.0,43736.0,1.75433615]
[1704139646696,1.19063097,43737.0,43736.0,0.99250515]
[1704139647589,1.19063097,43737.0,43736.0,0.10046859]
[1704139647802,1.19163097,43737.0,43736.0,0.10846859]
[1704139648022,1.42545319,43737.0,43736.0,0.01781081]
[1704139648232,1.45909319,43737.0,43736.0,0.012]
[1704139648682,1.45909319,43737.0,43736.0,0.008]
[1704139649098,1.45909319,43737.0,43736.0,0.011]
[1704139649547,0.01,43736.0,43728.0,0.3021]
[1704139649763,1.44809319,43737.0,43728.0,0.3021]
[1704139649978,0.05226,43735.0,43728.0,0.3021]
[1704139650208,0.06994,43736.0,43729.0,0.00524082]
[1704139650421,0.0471,43734.0,43729.0,0.00524082]
[1704139650837,0.05544,43735.0,43728.0,0.3021]
[1704139651040,0.0643,43736.0,43728.0,0.3021]
[1704139651247,0.05208,43735.0,43728.0,0.3021]
[1704139651469,1.25413319,43737.0,43730.0,0.01]
[1704139651681,0.17934222,43736.0,43729.0,0.01]
[1704139651893,0.17934222,43732.0,43729.0,0.001]
[1704139652139,0.17934222,43732.0,43728.0,0.001]
[1704139652393,0.2340463,43732.0,43728.0,0.001]
[1704139652830,0.07934222,43730.0,43728.0,0.001]
[1704139652835,0.20934222,43729.0,43728.0,0.001]
[1704139653065,0.20934222,43726.0,43725.0,0.04912849]
[1704139653293,0.07934222,43725.0,43724.0,0.07074546]
[1704139653993,0.13400222,43725.0,43724.0,0.07074546]
[1704139654199,0.23400222,43725.0,43724.0,0.07074546]
[1704139654432,0.9178529,43725.0,43724.0,0.07074546]
[1704139655119,0.9198529,43725.0,43724.0,0.07074546]
[1704139655346,0.91784731,43725.0,43724.0,0.07074546]
[1704139655572,0.91784731,43725.0,43707.0,0.666067]
[1704139655573,0.2,43721.0,43707.0,0.666067]
[1704139655801,0.2,43721.0,43708.0,0.89236199]
[1704139656033,0.2,43721.0,43704.0,0.07000749]
[1704139656034,0.2,43717.0,43704.0,0.07000749]
[1704139656275,0.2,43717.0,43705.0,0.8924392]
[1704139656528,0.2,43712.0,43704.0,0.05]
[1704139656734,0.2,43712.0,43705.0,0.04937255]
[1704139656949,0.25470308,43712.0,43705.0,0.04937255]
[1704139657181,0.05154,43711.0,43705.0,0.04937255]
[1704139657621,0.05154,43711.0,43707.0,0.003]
[1704139657843,0.05154,43711.0,43705.0,0.04937255]
[1704139658055,0.1,43709.0,43705.0,0.04937255]
[1704139658276,0.1,43709.0,43705.0,0.05037255]
[1704139658521,0.1,43709.0,43704.0,0.001]
[1704139658763,0.05502,43708.0,43707.0,0.001]
[1704139659001,0.3,43707.0,43701.0,0.3171]
[1704139659211,0.25502,43708.0,43705.0,0.002]
[1704139659414,0.3,43707.0,43705.0,0.002]
[1704139659631,0.1462,43706.0,43705.0,0.002]
[1704139659860,0.0528,43707.0,43705.0,0.001]
[1704139660135,0.108,43709.0,43705.0,0.001]
[1704139660136,0.01,43708.0,43707.0,0.001]
[1704139660840,0.018,43708.0,43707.0,0.24521711]
[1704139661057,0.01,43708.0,43707.0,0.91029111]
[1704139661266,0.41594,43724.0,43717.0,0.01]
[1704139661507,0.05,43724.0,43722.0,0.01]
[1704139661751,0.05,43724.0,43723.0,0.01]
[1704139661963,0.05,43724.0,43723.0,0.01508217]
[1704139662379,0.35172,43730.0,43723.0,0.01508217]
[1704139662579,0.3,43730.0,43723.0,0.01508217]
[1704139662799,0.04434,43729.0,43723.0,0.01]
[1704139663009,0.3,43730.0,43723.0,0.011]
[1704139663211,0.3516,43730.0,43723.0,0.011]
[1704139663423,0.0462,43729.0,43723.0,0.011]
[1704139663631,0.0462,43729.0,43724.0,0.00505377]
[1704139664073,0.3,43730.0,43724.0,0.00505377]
[1704139664711,0.027,43729.0,43724.0,0.00505377]
[1704139664920,0.015,43729.0,43724.0,0.00505377]
[1704139665136,0.314,43730.0,43724.0,0.00605377]
[1704139665338,0.314,43730.0,43726.0,0.01]
[1704139665545,0.03,43730.0,43726.0,0.01]
[1704139665750,0.33,43730.0,43727.0,0.0050397]
[1704139665966,0.33,43730.0,43726.0,0.01]
[1704139666177,0.33,43730.0,43728.0,0.00503769]
[1704139666178,0.314,43730.0,43728.0,0.00503769]
[1704139666600,0.314,43730.0,43726.0,0.01]
[1704139667020,0.314,43730.0,43729.0,0.005033]
[1704139667235,0.05148,43729.0,43726.0,0.01]
[1704139667927,0.3,43727.0,43726.0,0.002]
[1704139668138,0.89912311,43727.0,43726.0,0.001]
[1704139668354,0.98234311,43727.0,43726.0,0.003]
[1704139668766,0.98234311,43727.0,43726.0,0.001]
[1704139669196,0.3,43723.0,43718.0,0.01]
[1704139669613,0.3,43723.0,43716.0,0.09934853]
[1704139669825,0.05508,43722.0,43718.0,0.01]
[1704139670035,0.05508,43722.0,43717.0,0.01]
[1704139670457,0.15508,43722.0,43718.0,0.01]
[1704139670667,0.15508,43722.0,43716.0,0.05934853]
[1704139670872,0.2,43718.0,43716.0,0.04934853]
[1704139671296,0.2,43718.0,43709.0,0.05]
[1704139671297,0.0495,43717.0,43709.0,0.05]
[1704139671521,0.0495,43717.0,43711.0,0.01]
[1704139671760,0.2501,43718.0,43711.0,0.01]
[1704139671994,0.2501,43718.0,43710.0,0.01]
[1704139672412,0.2501,43718.0,43709.0,0.34995233]
[1704139672413,0.3,43716.0,43709.0,0.34995233]
[1704139673481,0.2,43716.0,43711.0,0.01]
[1704139674093,0.2,43716.0,43710.0,0.009]
[1704139674301,0.2,43716.0,43711.0,0.004]
[1704139674499,0.2,43716.0,43711.0,0.014]
[1704139674704,0.201,43716.0,43711.0,0.021]
[1704139674912,0.201,43716.0,43711.0,0.007]
[1704139675135,0.2,43714.0,43711.0,0.01]
[1704139675597,0.2,43714.0,43709.0,0.34995233]
[1704139675799,0.24596,43714.0,43710.0,0.009]
[1704139676358,0.301,43716.0,43710.0,0.009]
[1704139676591,0.001,43716.0,43710.0,0.019]
[1704139676791,0.001,43716.0,43715.0,0.01]
[1704139676991,0.3,43720.0,43715.0,0.01]
[1704139677194,0.2,43719.0,43715.0,0.01]
[1704139677394,0.35496,43719.0,43715.0,0.01]
[1704139677592,0.2,43716.0,43715.0,0.01]
[1704139677995,0.2,43716.0,43711.0,0.31]
[1704139677996,0.204,43716.0,43711.0,0.31]
[1704139678338,0.24734,43716.0,43715.0,0.001]
[1704139678470,0.24734,43716.0,43715.0,0.002]
[1704139678679,0.24734,43716.0,43711.0,0.01]
[1704139678880,0.04734,43716.0,43711.0,0.01]
[1704139679080,0.004,43716.0,43715.0,0.011]
[1704139679296,0.012,43716.0,43715.0,0.011]
[1704139679528,0.012,43716.0,43715.0,0.61022411]
[1704139679759,0.012,43716.0,43715.0,0.91022411]
[1704139679957,0.012,43716.0,43715.0,0.97040411]
[1704139680134,0.008,43716.0,43715.0,0.91022411]
[1704139680336,0.3,43730.0,43726.0,0.01]
[1704139680556,0.3,43730.0,43721.0,0.01]
[1704139680833,0.0552,43731.0,43726.0,0.01]
[1704139681047,0.05,43733.0,43731.0,0.01]
[1704139681433,1.14829097,43737.0,43732.0,0.00530165]
[1704139681719,1.14829097,43737.0,43731.0,0.01]
[1704139682261,0.005,43733.0,43731.0,0.012]
[1704139682448,0.005,43733.0,43732.0,0.00530165]
[1704139682655,0.014,43733.0,43732.0,0.00530165]
[1704139683079,0.014,43733.0,43732.0,0.24851876]
[1704139683290,0.014,43733.0,43732.0,0.54851876]
[1704139683517,0.014,43733.0,43732.0,0.91438276]
[1704139683518,0.009,43733.0,43732.0,0.91438276]
[1704139683869,1.15329097,43737.0,43736.0,0.375831]
[1704139684072,1.14829097,43737.0,43736.0,0.675831]
[1704139684345,1.14829097,43737.0,43736.0,0.00526875]
[1704139684552,1.15629097,43737.0,43736.0,0.00526875]
[1704139684753,1.15629097,43737.0,43731.0,0.01]
[1704139684944,0.001,43733.0,43732.0,0.014]
[1704139685179,0.001,43733.0,43732.0,0.0195768]
[1704139685392,1.15729097,43737.0,43732.0,0.0055768]
[1704139685597,0.16546,43736.0,43732.0,0.0055768]
[1704139685803,0.14824,43736.0,43728.0,0.04934802]
[1704139686020,0.0486,43735.0,43728.0,0.04934802]
[1704139686228,0.0486,43735.0,43733.0,0.00557094]
[1704139686459,0.0486,43735.0,43729.0,0.01]
[1704139686695,0.2,43732.0,43728.0,0.04934802]
[1704139686954,0.1,43731.0,43728.0,0.04934802]
[1704139687142,0.3,43729.0,43728.0,0.04934802]
[1704139687283,0.2,43728.0,43720.0,0.365964]
[1704139687701,0.2,43728.0,43721.0,0.01]
[1704139687907,0.24788,43728.0,43721.0,0.01]
[1704139688307,0.24788,43728.0,43720.0,0.365964]
[1704139688683,0.208,43728.0,43721.0,0.3]
[1704139688893,0.05448,43727.0,43721.0,0.31]
[1704139689109,0.2,43728.0,43721.0,0.3]
[1704139689325,0.1,43727.0,43722.0,0.023]
[1704139689541,0.2,43725.0,43721.0,0.3]
[1704139689755,0.2,43725.0,43720.0,0.001]
[1704139689962,0.06096,43724.0,43720.0,0.001]
[1704139690182,0.16096,43724.0,43720.0,0.001]
[1704139690617,0.16096,43724.0,43722.0,0.001]
[1704139690828,0.05016,43723.0,43715.0,0.01]
[1704139691044,0.05016,43723.0,43721.0,0.001]
[1704139691270,0.15102,43724.0,43721.0,0.001]
[1704139691475,0.15102,43724.0,43720.0,0.001]
[1704139691476,0.1,43724.0,43720.0,0.023]
[1704139691694,0.1,43724.0,43719.0,0.01]
[1704139691895,0.109,43724.0,43722.0,0.001]
[1704139692367,0.1,43724.0,43721.0,0.023]
[1704139692588,0.09798308,43732.0,43721.0,0.023]
[1704139692589,0.1,43728.0,43721.0,0.023]
[1704139692827,0.1,43728.0,43722.0,0.00604181]
[1704139692828,0.005,43724.0,43722.0,0.00604181]
[1704139693069,0.014,43724.0,43723.0,0.023]
[1704139693304,0.014,43724.0,43723.0,0.0280366]
[1704139693536,0.009,43724.0,43723.0,0.0280366]
[1704139694004,0.009,43724.0,43723.0,0.0380366]
[1704139694242,0.2,43732.0,43724.0,0.01]
[1704139694524,2.0,43740.0,43728.0,0.365891]
[1704139694525,0.0453,43734.0,43728.0,0.365891]
[1704139694758,0.0453,43734.0,43727.0,0.01]
[1704139694759,0.015,43728.0,43727.0,0.01]
[1704139694988,0.04494,43736.0,43727.0,0.033]
[1704139695214,1.24829097,43737.0,43727.0,0.033]
[1704139695215,1.29605097,43737.0,43729.0,0.00501183]
[1704139695449,0.2,43735.0,43730.0,0.023]
[1704139695684,0.1,43732.0,43728.0,0.023]
[1704139696131,0.37761711,43732.0,43727.0,0.011]
[1704139696359,0.1,43730.0,43729.0,0.00500315]
[1704139696584,0.1,43730.0,43728.0,0.00500836]
[1704139696818,0.1,43730.0,43729.0,0.00500315]
[1704139697287,0.14668,43730.0,43729.0,0.00500315]
[1704139697519,0.60635711,43730.0,43729.0,0.00500315]
[1704139697746,0.2,43729.0,43728.0,0.001]
[1704139698209,0.36744,43729.0,43728.0,0.001]
[1704139698463,0.60065711,43729.0,43728.0,0.001]
[1704139698707,0.10940816,43735.0,43724.0,0.01]
[1704139698708,0.0558,43731.0,43724.0,0.01]
[1704139698943,1.24829097,43737.0,43728.0,0.004]
[1704139698944,1.14829097,43737.0,43728.0,0.004]
[1704139699190,0.2,43728.0,43723.0,0.04978305]
[1704139699448,0.2,43727.0,43723.0,0.04978305]
[1704139699879,0.2,43727.0,43717.0,0.365987]
[1704139699880,0.2444,43727.0,43718.0,0.6124]
[1704139700096,0.2444,43727.0,43719.0,0.033]
[1704139700308,0.2444,43727.0,43721.0,0.01]
[1704139700309,0.0471,43726.0,43721.0,0.01]
[1704139700522,0.0471,43726.0,43722.0,0.023]
[1704139700962,0.2,43723.0,43718.0,0.31228631]
[1704139701176,0.2,43723.0,43718.0,0.04988631]
[1704139701395,0.1537,43722.0,43718.0,0.04988631]
[1704139701615,0.2,43723.0,43719.0,0.01]
[1704139701841,0.1,43722.0,43719.0,0.01]
[1704139702119,0.1,43722.0,43714.0,0.3]
[1704139702120,0.002,43727.0,43723.0,0.01]
[1704139702332,0.2,43736.0,43727.0,0.01]
[1704139702548,1.14829097,43737.0,43729.0,0.01]
[1704139702763,1.14829097,43737.0,43730.0,0.023]
[1704139702972,1.14829097,43737.0,43731.0,0.24321711]
[1704139703180,1.14829097,43737.0,43734.0,0.01]
[1704139703635,1.14829097,43737.0,43735.0,0.26621711]
[1704139703870,1.15429097,43737.0,43735.0,0.27330108]
[1704139704307,1.15429097,43737.0,43735.0,0.04008397]
[1704139704519,1.15429097,43737.0,43736.0,0.01]
[1704139704765,1.15929097,43737.0,43736.0,0.01]
[1704139704973,1.15429097,43737.0,43736.0,0.04007616]
[1704139705617,1.15529097,43737.0,43736.0,0.04007616]
[1704139705827,1.15529097,43737.0,43736.0,0.033]
[1704139706118,1.15429097,43737.0,43736.0,0.04007616]
[1704139706337,1.14829097,43737.0,43736.0,0.04007616]
[1704139706552,1.14829097,43737.0,43736.0,0.04807616]
[1704139706553,1.14929097,43737.0,43736.0,0.04807616]
[1704139707443,1.14929097,43737.0,43736.0,0.04207616]
[1704139707658,1.14929097,43737.0,43736.0,0.035]
[1704139707876,1.14929097,43737.0,43736.0,0.012]
[1704139708092,1.20047097,43737.0,43736.0,0.012]
[1704139708309,1.14929097,43737.0,43736.0,0.012]
[1704139711611,1.07929097,43737.0,43736.0,0.012]
[1704139712234,1.07929097,43737.0,43736.0,0.03935471]
[1704139713357,1.07929097,43737.0,43736.0,0.06235471]
[1704139713823,1.07929097,43737.0,43736.0,0.0463973]
[1704139714035,1.07929097,43737.0,43736.0,0.04463665]
[1704139714251,1.07929097,43737.0,43736.0,0.03935471]
[1704139714461,1.07929097,43737.0,43736.0,0.04463509]
[1704139715114,1.07929097,43737.0,43736.0,0.03935471]
[1704139715328,1.07929097,43737.0,43736.0,0.06235471]
[1704139715506,1.07929097,43737.0,43736.0,0.06763509]
[1704139715955,1.07929097,43737.0,43736.0,0.44346609]
[1704139716163,1.07929097,43737.0,43736.0,0.74346609]
[1704139718026,1.07929097,43737.0,43736.0,0.9766832]
[1704139719596,1.07929097,43737.0,43736.0,0.72046609]
[1704139720884,1.07929097,43737.0,43736.0,0.7221624]
[1704139721522,1.07929097,43737.0,43736.0,0.7451624]
[1704139721979,1.12999097,43737.0,43736.0,0.0463314]
[1704139722410,1.07929097,43737.0,43736.0,0.0463314]
[1704139722627,1.07929097,43737.0,43736.0,0.03935471]
[1704139722873,1.17929097,43737.0,43736.0,0.03935471]
[1704139723079,1.24241097,43737.0,43736.0,0.03935471]
[1704139723279,1.24241097,43737.0,43736.0,0.03535471]
[1704139723486,1.73033116,43737.0,43736.0,0.03535471]
[1704139723689,1.74033116,43737.0,43736.0,0.02835471]
[1704139723893,1.74733116,43737.0,43736.0,0.02935471]
[1704139724094,1.73633116,43737.0,43736.0,0.02835471]
[1704139724304,1.73633116,43737.0,43736.0,0.02735471]
[1704139724305,1.52933116,43737.0,43736.0,0.02735471]
[1704139724516,1.53933116,43737.0,43736.0,0.02835471]
[1704139724719,1.66670748,43737.0,43736.0,0.001]
[1704139724920,1.53926655,43737.0,43736.0,0.001]
[1704139725360,1.48462808,43737.0,43736.0,0.001]
[1704139725618,1.55326655,43737.0,43736.0,0.002]
[1704139725821,1.48862808,43737.0,43736.0,0.001]
[1704139726233,1.55028161,43737.0,43736.0,0.002]
[1704139726439,1.53050752,43737.0,43736.0,0.001]
[1704139726644,1.19329041,43737.0,43736.0,0.001]
[1704139726856,1.01151688,43737.0,43736.0,0.001]
[1704139727062,1.02251688,43737.0,43736.0,0.001]
[1704139727286,1.02251688,43737.0,43736.0,0.002]
[1704139727287,1.03251688,43737.0,43736.0,0.002]
[1704139727504,1.03251688,43737.0,43736.0,0.011]
[1704139727725,1.03251688,43737.0,43736.0,0.034]
[1704139728353,1.03251688,43737.0,43736.0,0.03924047]
[1704139728566,0.97664418,43737.0,43736.0,0.03924047]
[1704139728778,0.97664418,43737.0,43736.0,0.04024047]
[1704139728992,0.97064418,43737.0,43736.0,0.04024047]
[1704139729229,0.96064418,43737.0,43736.0,0.04098729]
[1704139729447,0.93564418,43737.0,43736.0,0.03998729]
[1704139729663,0.94264418,43737.0,43736.0,0.04198729]
[1704139729869,0.94664418,43737.0,43736.0,0.04098729]
[1704139730082,0.94664418,43737.0,43736.0,0.04398729]
[1704139730083,0.93564418,43737.0,43736.0,0.04398729]
[1704139730289,0.91564418,43737.0,43736.0,0.04398729]
[1704139730541,0.88977418,43737.0,43736.0,0.04398729]
[1704139730965,0.88977418,43737.0,43736.0,0.03998729]
[1704139731172,0.88977418,43737.0,43736.0,0.04198729]
[1704139731402,0.88977418,43737.0,43736.0,0.035]
[1704139731626,0.88977418,43737.0,43732.0,0.2816]
[1704139731627,0.475,43735.0,43732.0,0.2816]
[1704139731871,0.475,43735.0,43733.0,0.3]
[1704139732091,0.475,43735.0,43733.0,0.01]
[1704139732543,0.475,43735.0,43732.0,0.01]
[1704139732794,0.476,43735.0,43732.0,0.016]
[1704139733014,0.576,43735.0,43732.0,0.016]
[1704139733193,0.04986,43734.0,43732.0,0.016]
[1704139733591,0.04986,43734.0,43730.0,0.01]
[1704139733811,0.04986,43734.0,43732.0,0.01]
[1704139733954,0.68245353,43735.0,43731.0,0.01]
[1704139734156,0.68245353,43735.0,43732.0,0.01]
[1704139734595,0.67945353,43735.0,43732.0,0.01]
[1704139734804,0.04566,43734.0,43733.0,0.001]
[1704139735014,0.68781353,43735.0,43733.0,0.001]
[1704139735222,0.68781353,43735.0,43732.0,0.01]
[1704139735438,0.67981353,43735.0,43732.0,0.01]
[1704139735881,0.0447,43734.0,43732.0,0.01]
[1704139736088,0.0507,43734.0,43732.0,0.012]
[1704139736297,0.0447,43734.0,43732.0,0.011]
[1704139736518,0.0447,43734.0,43732.0,0.002]
[1704139736720,0.0447,43734.0,43732.0,0.001]
[1704139736994,0.0447,43734.0,43729.0,0.3]
[1704139736995,0.62258,43735.0,43729.0,0.31]
[1704139737207,0.007,43734.0,43732.0,0.001]
[1704139737455,0.007,43734.0,43732.0,0.00085384]
[1704139738109,0.018,43734.0,43732.0,0.00185384]
[1704139740153,0.018,43734.0,43733.0,0.01]
[1704139740575,0.018,43734.0,43733.0,0.033]
[1704139740802,0.018,43734.0,43733.0,0.398856]
[1704139741098,0.475,43735.0,43733.0,0.398856]
[1704139741328,0.475,43735.0,43733.0,0.390856]
[1704139741329,0.018,43734.0,43733.0,0.390856]
[1704139741784,0.007,43734.0,43733.0,0.389856]
[1704139742015,0.38500001,43735.0,43734.0,0.11]
[1704139742251,0.38500001,43735.0,43734.0,1.42504786]
[1704139742252,0.39700001,43735.0,43734.0,1.42504786]
[1704139742477,0.39700001,43735.0,43734.0,1.47298786]
[1704139742719,0.38500001,43735.0,43734.0,1.47298786]
[1704139742945,0.38500001,43735.0,43734.0,1.42504786]
[1704139743180,0.39300001,43735.0,43734.0,1.20204786]
[1704139743603,0.38500001,43735.0,43734.0,1.20204786]
[1704139743841,0.38700001,43735.0,43734.0,1.22004786]
[1704139744556,0.38500001,43735.0,43734.0,0.56621711]
[1704139744767,0.38500001,43735.0,43734.0,1.22495796]
[1704139744974,0.38700001,43735.0,43734.0,1.25195796]
[1704139745644,0.38600001,43735.0,43734.0,1.23995796]
[1704139745866,0.38700001,43735.0,43734.0,1.24895796]
[1704139746303,0.38700001,43735.0,43734.0,1.23895796]
[1704139746522,0.38700001,43735.0,43734.0,0.98274085]
[1704139747830,0.38700001,43735.0,43734.0,0.99274085]
[1704139748011,0.38700001,43735.0,43734.0,1.01574085]
[1704139749740,0.38700001,43735.0,43734.0,0.024]
[1704139750798,0.48600001,43735.0,43734.0,0.015]
[1704139751061,0.65992001,43735.0,43734.0,0.015]
[1704139751272,0.65992001,43735.0,43734.0,0.008]
[1704139751485,0.66092001,43735.0,43734.0,0.018]
[1704139751698,0.65892001,43735.0,43733.0,0.02727303]
[1704139751921,0.64126001,43735.0,43733.0,0.02727303]
[1704139752123,0.64126001,43735.0,43734.0,0.001]
[1704139752357,0.58500001,43735.0,43734.0,0.001]
[1704139752777,0.63610001,43735.0,43734.0,0.001]
[1704139753222,0.63610001,43735.0,43729.0,0.01]
[1704139753429,0.58900001,43735.0,43728.0,0.07681664]
[1704139753664,0.21290177,43734.0,43728.0,0.07681664]
[1704139753875,0.1,43732.0,43728.0,0.07681664]
[1704139754301,0.0492,43731.0,43728.0,0.02780511]
[1704139754736,0.0492,43731.0,43728.0,0.007]
[1704139754954,0.1,43730.0,43728.0,0.007]
[1704139755172,0.1,43730.0,43728.0,0.013]
[1704139755612,0.1,43731.0,43728.0,0.014]
[1704139756048,0.001,43732.0,43728.0,0.014]
[1704139756519,0.05470177,43734.0,43728.0,0.001]
[1704139756926,0.05470177,43734.0,43727.0,0.01]
[1704139757344,0.05470177,43734.0,43728.0,0.004]
[1704139757818,0.001,43732.0,43728.0,0.006]
[1704139758036,0.05570177,43734.0,43727.0,0.01]
[1704139758249,0.05570177,43734.0,43727.0,0.003]
[1704139758483,0.05570177,43734.0,43727.0,0.013]
[1704139758699,0.05470177,43734.0,43727.0,0.013]
[1704139758934,0.05970177,43734.0,43727.0,0.013]
[1704139759541,0.05970177,43734.0,43727.0,0.01]
[1704139759542,0.11010177,43734.0,43727.0,0.01]
[1704139760182,0.1,43730.0,43727.0,0.01]
[1704139760400,0.1,43730.0,43727.0,0.011]
[1704139760819,0.2,43728.0,43727.0,0.001]
[1704139761034,0.43321711,43728.0,43727.0,0.001]
[1704139761242,0.1,43727.0,43723.0,0.07716912]
[1704139761670,0.1,43727.0,43723.0,0.02759142]
[1704139762120,0.1,43727.0,43720.0,0.3]
[1704139762327,0.1,43727.0,43721.0,0.01]
[1704139762768,0.1,43727.0,43723.0,0.01]
[1704139763167,0.1,43727.0,43721.0,0.01]
[1704139763584,0.101,43727.0,43721.0,0.022]
[1704139764073,0.101,43727.0,43720.0,0.006]
[1704139764280,0.101,43727.0,43723.0,0.001]
[1704139764495,0.1,43727.0,43719.0,0.31]
[1704139764708,0.1,43727.0,43720.0,0.023]
[1704139764888,0.1,43727.0,43721.0,0.005]
[1704139765133,0.1,43727.0,43723.0,0.01]
[1704139765596,0.1,43727.0,43720.0,0.023]
[1704139765813,0.1,43727.0,43721.0,0.004]
[1704139766033,0.00292,43728.0,43724.0,0.01]
[1704139766247,0.6920314,43734.0,43724.0,0.01]
[1704139766248,0.001,43727.0,43724.0,0.01]
[1704139766471,0.001,43727.0,43726.0,0.01]
[1704139766691,0.004,43727.0,43726.0,0.60913211]
[1704139766918,0.004,43727.0,43726.0,1.84953027]
[1704139767354,0.38500001,43735.0,43734.0,0.01]
[1704139767578,0.38500001,43735.0,43734.0,0.033]
[1704139768478,0.38500001,43735.0,43734.0,0.037]
[1704139768911,0.38500001,43735.0,43734.0,0.014]
[1704139769126,0.38500001,43735.0,43734.0,0.004]
[1704139769304,0.38500001,43735.0,43732.0,0.01]
[1704139769550,0.38500001,43735.0,43731.0,0.3]
[1704139769765,0.38500001,43735.0,43730.0,0.2599]
[1704139769766,0.38600001,43735.0,43734.0,0.007]
[1704139770173,0.38600001,43735.0,43734.0,0.011]
[1704139770487,0.38500001,43735.0,43734.0,0.001]
[1704139770903,0.38500001,43735.0,43730.0,0.2599]
[1704139771112,0.38500001,43735.0,43731.0,0.01]
[1704139771326,0.38600001,43735.0,43733.0,0.01]
[1704139771775,0.31600001,43735.0,43733.0,0.01]
[1704139771993,0.31600001,43735.0,43734.0,0.023]
[1704139771994,0.31500001,43735.0,43734.0,0.023]
[1704139772205,0.31600001,43735.0,43734.0,0.023]
[1704139772414,0.31700001,43735.0,43734.0,0.023]
[1704139772626,0.31600001,43735.0,43734.0,0.023]
[1704139773497,0.31500001,43735.0,43734.0,0.023]
[1704139773920,0.31800001,43735.0,43734.0,0.023]
[1704139774134,0.31800001,43735.0,43733.0,0.01]
[1704139774363,0.31500001,43735.0,43734.0,0.004]
[1704139774576,0.31600001,43735.0,43734.0,0.004]
[1704139774992,0.31500001,43735.0,43734.0,0.004]
[1704139775682,0.31500001,43735.0,43730.0,0.2599]
[1704139775892,0.32100001,43735.0,43734.0,0.001]
[1704139776106,0.32100001,43735.0,43731.0,0.01]
[1704139776537,0.32200001,43735.0,43730.0,0.2599]
[1704139777189,0.31500001,43735.0,43730.0,0.2599]
[1704139777403,0.42100001,43735.0,43731.0,0.002]
[1704139777824,0.1,43734.0,43731.0,0.002]
[1704139778042,0.20222177,43734.0,43731.0,0.002]
[1704139778456,0.0489,43733.0,43731.0,0.002]